[Event "1st Bella Italia International 2022"]
[Site "Lignano"]
[Date "2022.08.18"]
[Round "1.1"]
[White "Sonis, Francesco"]
[Black "Colonetti, Fabio"]
[Result "1-0"]
[ECO "A30"]
[WhiteElo "2543"]
[BlackElo "2152"]
[Annotator "TA"]
[PlyCount "67"]
[EventDate "2022.08.18"]
[EventCountry "ITA"]
[SourceTitle "playchess.com"]
[Source "ChessBase"]
[SourceQuality "1"]
[TimeControl "5400+30"]

{[%evp 13,67,4,21,-10,-5,-8,11,17,48,36,66,0,12,6,31,19,71,17,14,14,21,20,20,25,43,35,89,80,92,83,114,117,117,117,134,120,118,77,208,223,212,212,214,208,210,207,291,286,311,300,296,289,414,408,489,478]} 1. Nf3 {[%emt 0:00:30]} Nf6 {[%emt 0:00:35]} 2. c4 {[%emt 0:00:00]} g6 {[%emt 0:02:50]} 3. b3 {[%emt 1:31:30]} Bg7 {[%emt 0:00:27]} 4. Bb2 {[%emt 0:00:00]} O-O {[%emt 0:00:47]} 5. g3 {[%emt 0:00:00]} b6 {[%emt 0:02:19]} 6. Bg2 {[%emt 0:00:00]} Bb7 {[%emt 0:00:05]} 7. O-O {[%emt 0:00:00]} c5 {[%emt 0:04:32]} 8. Re1 {[%emt 0:00:00] 8.d4 gains popularity. A30: Symmetrical English: Double Fianchetto and Hedgehog.} d5 {[%emt 0:05:41]} 9. cxd5 {[%emt 0:00:00]} (9. e3 {looks sharper.} e6 10. d4 dxc4 11. bxc4 Qe7 12. Nbd2) 9... Nxd5 {[%emt 0:02:12]} 10. Bxg7 {[%emt 0:00:00] The position is equal.} Kxg7 {[%emt 0:00:06]} 11. d4 {[%emt 0:00:00]} cxd4 {[%emt 0:09:59]} 12. Nxd4 {[%emt 0:00:00] [#]} ({Better is} 12. Qxd4+ $14 Nf6 13. Qb2) 12... Qd7 $146 {[%emt 0:03:47]} ({Predecessor:} 12... e6 13. e4 Ne7 14. Nc3 Nbc6 15. Ndb5 e5 16. Nd5 a6 17. Nbc3 Nd4 18. Nxe7 Qxe7 {1-0 (40) Limontas,M (2311)-Wiwatanadate,P (2040) Chess.com INT 2020}) 13. Qd2 {[%emt 0:00:00]} Kg8 {[%emt 0:29:08]} 14. Rd1 {[%emt 0:00:00]} Rd8 {[%emt 0:07:21]} (14... Nf6 $11) 15. Nc3 {[%emt 0:00:00]} ({White should try} 15. Nc2 $1 $16) 15... Nxc3 $11 {[%emt 0:03:33]} 16. Qxc3 {[%emt 0:00:00] Black must now prevent Bxb7.} Na6 {[%emt 0:06:09]} 17. Bxb7 {[%emt 0:00:00]} Qxb7 {[%emt 0:00:14]} 18. b4 {[%emt 0:00:00]} Rac8 {[%emt 0:02:41] Prevents Nc6.} 19. Nc6 {[%emt 0:00:00]} Rxd1+ {[%emt 0:07:02]} (19... Re8 $14 20. b5 Nc5) 20. Rxd1 $16 {[%emt 0:00:00][%cal Oc6e7] Strongly threatening Nxe7+!} Re8 {[%emt 0:06:11]} (20... Qxc6 $2 21. Rd8+ $3 {[%mdl 512]} Rxd8 22. Qxc6 Nxb4 23. Qb7 $18) 21. Nd8 $40 {[%emt 0:00:00][%mdl 128] White wants a kill. White is much more active.} Qe4 {[%emt 0:02:27]} 22. Qc6 {[%emt 0:00:00]} Qxc6 {[%emt 0:00:34]} 23. Nxc6 {[%emt 0:00:00][%mdl 4096] Endgame KRN-KRN} Kg7 {[%emt 0:00:30]} 24. Rd7 {[%emt 0:00:00]} Rc8 {[%emt 0:00:29]} 25. b5 {[%emt 0:00:00]} ({Resist} 25. Nxa7 Rc1+ 26. Kg2 Nxb4 $14) 25... Nb8 {[%emt 0:00:46] Black cannot hold the game after this.} (25... Rc7 $16 26. Rxc7 (26. Rxe7 Rxe7 27. Nxe7 Nc7 $14) 26... Nxc7) 26. Nxb8 $18 {[%emt 0:00:00]} ({Don't do} 26. Rxa7 Nxc6 27. bxc6 Kf8 $14) 26... Rxb8 {[%emt 0:00:04]} 27. Rxe7 {[%emt 0:00:00] KR-KR} Ra8 {[%emt 0:00:22] [#]} 28. Rb7 $1 {[%emt 0:00:00]} h5 {[%emt 0:01:04]} 29. a4 {[%emt 0:00:00]} Kf6 {[%emt 0:00:06]} (29... g5 {is a better defense.} 30. Kg2 Kf6) 30. Kg2 {[%emt 0:00:00]} Ke6 {[%emt 0:00:07]} 31. Kf3 {[%emt 0:00:00]} f6 {[%emt 0:00:36]} 32. h4 {[%emt 0:00:00]} Ke5 {[%emt 0:00:16]} (32... g5 {keeps fighting.} 33. Rg7 gxh4 34. gxh4 Kd5) 33. Rg7 {[%emt 0:00:00]} Kf5 {[%emt 0:00:11]} 34. e4+ {[%emt 0:00:00] Weighted Error Value: White=0.11 (very precise) /Black=0.32} 1-0

[Event "1st Bella Italia International 2022"]
[Site "Lignano"]
[Date "2022.08.18"]
[Round "1.2"]
[White "Grigorian, Roudolph"]
[Black "Visakh N R"]
[Result "0-1"]
[ECO "B53"]
[WhiteElo "2101"]
[BlackElo "2503"]
[Annotator "TA"]
[PlyCount "102"]
[EventDate "2022.08.18"]
[EventCountry "ITA"]
[SourceTitle "playchess.com"]
[Source "ChessBase"]
[SourceQuality "1"]
[TimeControl "5400+30"]

{[%evp 9,102,0,-14,-4,0,0,0,-7,0,-1,4,4,27,18,24,22,28,31,34,27,31,13,9,0,22,23,23,22,22,22,34,23,31,22,40,14,27,23,31,4,19,0,6,0,0,-12,-6,-10,0,0,0,-6,0,-9,-7,-14,-4,-11,0,-10,0,0,0,0,0,-30,-30,-30,-30,-51,-63,-57,-54,-48,-47,-58,-11,-61,-43,-189,-107,-212,-220,-185,-183,-801,-800,-816,-816,-779,-773,-1028,-960,-887,-831]} 1. e4 {[%emt 0:00:04]} c5 {[%emt 0:02:03]} 2. Nf3 {[%emt 0:00:18]} d6 {[%emt 0:00:03]} 3. d4 {[%emt 0:00:11]} cxd4 {[%emt 0:00:03]} 4. Qxd4 {[%emt 0:00:07]} Nf6 {[%emt 0:02:01]} 5. c4 {[%emt 0:02:05]} Nc6 {[%emt 0:00:47]} 6. Qe3 {[%emt 0:00:03] B53: Sicilian: 2...d6: Lines with Qxd4.} Bg4 {[%emt 0:02:59]} 7. Be2 {[%emt 0:01:19]} g6 {[%emt 0:04:10]} 8. O-O {[%emt 0:00:09] The position is equal.} Bg7 {[%emt 0:00:50]} 9. Nc3 {[%emt 0:01:39]} O-O {[%emt 0:01:06]} 10. Rb1 {[%emt 0:07:03]} Nd7 {[%emt 0:03:27][%cal Bf6d7,Bd7c5,Bc5e6][%mdl 32]} 11. b3 {[%emt 0:09:36]} Nc5 {[%emt 0:09:02]} 12. Bb2 {[%emt 0:03:02] [#]} Ne6 $146 {[%emt 0:03:15]} ({Predecessor:} 12... a6 13. Nd5 e6 14. Bxg7 Kxg7 15. Nc3 Bxf3 16. Qxf3 e5 17. Qe3 Nd4 {1-0 (25) Bharathi,R (2112)-Sahajasri,C (2074) Chennai 2011}) 13. Ne1 {[%emt 0:24:22]} Bxe2 {[%emt 0:01:09]} 14. Nxe2 {[%emt 0:00:06]} Qb6 {[%emt 0:06:44]} 15. Nc2 {[%emt 0:03:44]} Qxe3 {[%emt 0:10:09]} 16. Nxe3 {[%emt 0:00:21]} Ned4 {[%emt 0:01:29]} 17. Nxd4 {[%emt 0:02:35]} Bxd4 {[%emt 0:00:39]} 18. Bxd4 {[%emt 0:02:54]} Nxd4 {[%emt 0:00:03]} 19. Rb2 {[%emt 0:00:14] Against Ne2+} Nc6 {[%emt 0:04:00]} 20. Rd1 {[%emt 0:00:49]} Rfd8 {[%emt 0:00:19]} 21. f3 {[%emt 0:00:21]} Kf8 {[%emt 0:01:47]} 22. Kf2 {[%emt 0:00:02]} e6 {[%emt 0:00:25]} 23. Rbd2 {[%emt 0:05:53]} Ke7 {[%emt 0:00:04]} 24. Nc2 {[%emt 0:00:26]} a6 {[%emt 0:00:44]} 25. Na3 {[%emt 0:00:47]} g5 {[%emt 0:01:25]} 26. Nb1 {[%emt 0:00:26]} Rac8 {[%emt 0:02:15]} 27. Nc3 {[%emt 0:18:00]} Ne5 {[%emt 0:01:42][%cal Ob7b5]} 28. Ne2 {[%emt 0:01:07]} h5 {[%emt 0:00:03]} 29. Nd4 {[%emt 0:00:38]} Rc5 {[%emt 0:01:02]} 30. Ke3 {[%emt 0:02:52]} h4 {[%emt 0:07:58]} 31. Rc2 {[%emt 0:00:37]} Rdc8 {[%emt 0:02:19]} 32. Rdc1 {[%emt 0:00:16]} R5c7 {[%emt 0:01:54]} 33. Ke2 {[%emt 0:01:26]} Rc5 {[%emt 0:02:13]} 34. Ke3 {[%emt 0:00:10]} Ng6 {[%emt 0:00:06]} 35. b4 {[%emt 0:06:36]} R5c7 {[%emt 0:00:02]} 36. c5 {[%emt 0:01:18]} dxc5 {[%emt 0:02:42]} 37. bxc5 {[%emt 0:03:07]} Ne5 {[%emt 0:01:13]} 38. a4 {[%emt 0:00:25]} Kf6 {[%emt 0:02:21]} 39. g3 {[%emt 0:00:41]} hxg3 {[%emt 0:01:08]} 40. hxg3 {[%emt 0:00:01]} Rd8 {[%emt 0:01:59]} 41. Rc3 {[%emt 0:03:14]} Rcd7 {[%emt 0:00:26]} 42. Nb3 {[%emt 0:00:01]} Rh8 {[%emt 0:01:46]} (42... Ke7 $15) 43. Na5 {[%emt 0:01:32]} ({White should play} 43. c6 $11 bxc6 44. Nc5) 43... Rh3 $15 {[%emt 0:02:22] Black is more active.} 44. Rg1 {[%emt 0:00:05] [#]} (44. c6 $15 bxc6 45. Nxc6) 44... Rh2 {[%emt 0:00:47]} (44... g4 $1 $19 45. fxg4 Kg5) 45. c6 {[%emt 0:01:07]} (45. Nc4 $17 {was called for.}) 45... Rdd2 $19 {[%emt 0:02:06][%csl Gd2][%cal Rh2e2]} ({And not} 45... bxc6 46. Nxc6 Nxc6 47. Rxc6 $17) 46. Re1 {[%emt 0:00:01] Inhibits Rhe2+. Threatens to win with c7.} Rdf2 $36 {[%emt 0:01:02][%mdl 2048] Black has strong initiative.} ({Stronger than} 46... bxc6 47. Nxc6 Ng6 48. Nd4 $17) 47. cxb7 $2 {[%emt 0:01:27]} (47. Kd4 Rxf3 48. Rec1 Rd2+ 49. Kc5 Rxc3+ 50. Rxc3 bxc6 51. Nb3) 47... Rxf3+ {[%emt 0:00:06] Black is clearly winning.} 48. Kd4 {[%emt 0:00:01]} Rd2+ {[%emt 0:00:21]} 49. Kc5 {[%emt 0:00:01]} Rxc3+ {[%emt 0:00:06]} 50. Kb4 {[%emt 0:00:11]} Rcd3 {[%emt 0:00:55] [#] ( -> ...Rb2+)} 51. Rf1+ {[%emt 0:01:35]} Kg7 {[%emt 0:00:06] Weighted Error Value: White=0.32/Black=0.09 (flawless)} 0-1

[Event "1st Bella Italia International 2022"]
[Site "Lignano"]
[Date "2022.08.18"]
[Round "1.3"]
[White "Ghosh, Diptayan"]
[Black "Etxagibel Larranaga, Asier"]
[Result "1-0"]
[ECO "D10"]
[WhiteElo "2538"]
[BlackElo "2118"]
[Annotator "TA"]
[PlyCount "63"]
[EventDate "2022.08.18"]
[EventCountry "ITA"]
[SourceTitle "playchess.com"]
[Source "ChessBase"]
[SourceQuality "1"]
[TimeControl "5400+30"]

{[%evp 14,63,27,15,25,21,26,15,24,24,17,21,29,24,26,24,28,24,34,25,26,21,34,28,54,0,0,0,3,0,19,16,31,4,26,27,95,68,98,85,130,132,161,153,709,702,702,695,672,644,1977,1786]} 1. d4 {[%emt 0:00:21]} d5 {[%emt 0:00:03]} 2. c4 {[%emt 0:00:35]} c6 {[%emt 0:00:05]} 3. e3 {[%emt 0:00:16]} Nf6 {[%emt 0:00:28]} 4. Nc3 {[%emt 0:00:05]} Bf5 {[%emt 0:02:05]} 5. cxd5 {[%emt 0:00:17]} cxd5 {[%emt 0:01:33]} 6. Qb3 {[%emt 0:00:12]} Bc8 {[%emt 0:21:05] 6...Nc6 might become the main line.} 7. Nf3 {[%emt 0:01:36]} e6 {[%emt 0:00:55]} 8. Bd3 {[%emt 0:00:10]} Be7 {[%emt 0:00:09] D10: Slav Defence: 3 cxd5 (without early Nf3) and 3 Nc3.} 9. O-O {[%emt 0:00:20]} O-O {[%emt 0:00:10]} 10. Bd2 {[%emt 0:00:30]} b6 {[%emt 0:01:46] The position is equal.} 11. Rac1 {[%emt 0:04:59]} Bb7 {[%emt 0:02:42]} 12. Ne5 {[%emt 0:00:54]} Nbd7 {[%emt 0:01:36]} 13. f4 $1 {[%emt 0:01:03]} Ne4 {[%emt 0:04:13]} 14. Nxe4 {[%emt 0:14:59]} dxe4 {[%emt 0:00:15]} 15. Bc4 $1 {[%emt 0:05:29] [#]} Nxe5 $146 {[%emt 0:08:40]} ({Predecessor:} 15... Kh8 16. Rc2 Bd6 17. Bb4 Qe7 18. Bxd6 Qxd6 19. Bb5 Nxe5 20. fxe5 Qe7 21. Bc6 Rac8 {1-0 (39) Jukic,M (2455)-Imanaliev,T (2385) Frunze 1987}) 16. fxe5 {[%emt 0:00:07]} Rc8 {[%emt 0:03:42]} 17. Bb4 {[%emt 0:02:02]} Bxb4 {[%emt 0:22:09]} 18. Qxb4 {[%emt 0:00:09]} Re8 {[%emt 0:00:19]} 19. b3 {[%emt 0:08:14]} (19. Bb5 $14 Qg5 20. Qa3 (20. Bxe8 Qxe3+ 21. Kh1 Qxc1 $17) 20... Rxc1 21. Rxc1) 19... Re7 $11 {[%emt 0:01:42]} 20. Rf4 {[%emt 0:06:35][%cal Bf1f4,Bf4e4,Be4e6,Be6c6][%mdl 32]} Bd5 {[%emt 0:07:01]} 21. Rcf1 {[%emt 0:03:54]} Bxc4 {[%emt 0:01:56]} 22. bxc4 {[%emt 0:00:06][%cal Bb3c4,Bc4d5][%mdl 32]} Rec7 {[%emt 0:01:34]} 23. Qe1 {[%emt 0:03:04]} Rd7 {[%emt 0:04:55]} 24. Qe2 {[%emt 0:01:49]} Qe8 {[%emt 0:02:00]} (24... Qc7 $11 {keeps the balance.}) 25. Rxe4 $16 {[%emt 0:03:35]} Rdc7 {[%emt 0:00:45] [#]} 26. d5 $1 {[%emt 0:02:58] White is more active.} exd5 {[%emt 0:01:09]} 27. cxd5 {[%emt 0:00:02]} Rc2 {[%emt 0:00:10]} 28. Qg4 {[%emt 0:06:46]} Rxa2 $2 {[%emt 0:02:41] This costs Black the game.} (28... Rc1 $16) 29. e6 $18 {[%emt 0:00:14] White is clearly winning.} fxe6 {[%emt 0:01:10]} 30. Rxe6 {[%emt 0:00:08]} Qd7 {[%emt 0:01:30]} 31. Qe4 {[%emt 0:01:09] [#] White threatens Re7 and mate.} Qb5 {[%emt 0:03:39][%cal Ob5f1] ( -> ...Qxf1+!)} 32. Rc6 {[%emt 0:03:26] Weighted Error Value: White=0.06 (flawless) /Black=0.20 (precise)} 1-0

[Event "1st Bella Italia International 2022"]
[Site "Lignano"]
[Date "2022.08.18"]
[Round "1.4"]
[White "Montorsi, Matteo"]
[Black "Karthik Venkataraman"]
[Result "0-1"]
[ECO "B26"]
[WhiteElo "2100"]
[BlackElo "2483"]
[Annotator "TA"]
[PlyCount "114"]
[EventDate "2022.08.18"]
[EventCountry "ITA"]
[SourceTitle "playchess.com"]
[Source "ChessBase"]
[SourceQuality "1"]
[TimeControl "5400+30"]

{[%evp 13,114,0,0,0,0,-17,0,-13,-12,-12,0,0,0,-21,0,-16,-21,-20,-25,-7,-18,-25,-7,-43,-4,-29,-26,-42,-14,-41,0,0,0,-53,-51,-75,-77,-75,-82,-100,-80,-83,-79,-113,-116,-115,-98,-141,-133,-127,-92,-92,-92,-92,-92,-92,-92,-92,-92,-92,-92,-92,-92,-92,-92,-92,-92,-92,-92,-92,-92,-92,-92,-92,-92,-92,-92,-92,0,-92,-92,-92,-92,-92,-92,-92,-92,-92,-92,-100,-100,-113,-113,-562,-547,-12827,-11208,-5895,-7828,-1895,-1799,-1103,-700]} 1. e4 {[%emt 0:00:08]} c5 {[%emt 0:00:06]} 2. Nc3 {[%emt 0:00:06]} d6 {[%emt 0:00:10]} 3. g3 {[%emt 0:00:34]} Nc6 {[%emt 0:00:41]} 4. Bg2 {[%emt 0:00:07]} g6 {[%emt 0:00:04]} 5. d3 {[%emt 0:00:19]} Bg7 {[%emt 0:00:05]} 6. Be3 {[%emt 0:00:21]} Rb8 {[%emt 0:00:06]} 7. a4 {[%emt 0:03:40]} a6 {[%emt 0:01:19][%cal Ba7a6,Ba6b5,Bb5b4,Bb4b3][%mdl 32]} 8. Qd2 {[%emt 0:00:11] B26: Closed Sicilian: 3 g3, lines with early Be3.} b5 {[%emt 0:00:38]} 9. axb5 {[%emt 0:00:09]} axb5 {[%emt 0:00:04]} 10. Nge2 {[%emt 0:01:44] The position is equal.} b4 {[%emt 0:03:25]} 11. Nd1 {[%emt 0:00:08]} Nd4 {[%emt 0:00:44]} 12. O-O {[%emt 0:02:42]} h5 {[%emt 0:00:20]} 13. h4 {[%emt 0:10:48] [#]} Nh6 $146 {[%emt 0:03:53]} ({Predecessor:} 13... Bd7 14. f4 Nh6 15. Bxd4 cxd4 16. Nf2 O-O 17. Ra7 Ng4 18. Nxg4 Bxg4 19. Rfa1 Qb6 20. Rxe7 {0-1 (42) Andre,D (2062)-Hautot,S (2333) Charleroi 2001}) 14. f3 {[%emt 0:02:49]} b3 {[%emt 0:01:07]} 15. Bxd4 {[%emt 0:15:30]} cxd4 {[%emt 0:00:24]} 16. c3 {[%emt 0:00:27]} dxc3 {[%emt 0:01:31]} 17. Ndxc3 {[%emt 0:00:21]} e6 {[%emt 0:00:45]} 18. Kh2 {[%emt 0:08:04]} Ng8 {[%emt 0:06:49]} (18... d5 $5 {[%cal Rd5e4]}) 19. Ra3 {[%emt 0:04:38]} Ne7 {[%emt 0:02:23]} 20. Nc1 {[%emt 0:10:00]} d5 {[%emt 0:02:48]} 21. Rxb3 {[%emt 0:08:10]} Bb7 {[%emt 0:05:51][%cal Bc8b7,Bb7a6,Ba6c4][%mdl 32]} 22. f4 {[%emt 0:04:12]} dxe4 {[%emt 0:01:39][%cal Oe4e3]} 23. Bxe4 {[%emt 0:00:21]} (23. Qd1 $1 $11) 23... Ba6 {[%emt 0:00:15]} 24. Rd1 {[%emt 0:02:52]} O-O {[%emt 0:07:30][%mdl 1024] Black has strong compensation.} 25. d4 {[%emt 0:02:54]} Bc4 {[%emt 0:00:51]} 26. Ra3 {[%emt 0:04:33]} Qd6 {[%emt 0:06:36]} 27. Ra4 {[%emt 0:01:06]} Rfc8 {[%emt 0:00:14]} 28. Qg2 {[%emt 0:00:46]} Qb6 {[%emt 0:01:29]} (28... Bxd4 $2 29. N1e2 $18) 29. Rd2 {[%emt 0:04:39]} Bxd4 {[%emt 0:01:11]} 30. N1e2 {[%emt 0:02:08]} Bf6 {[%emt 0:02:10] A strong pair of Bishops.} 31. Qg1 {[%emt 0:01:46] Against Qe3} Bxe2 {[%emt 0:04:59]} 32. Qxb6 {[%emt 0:01:54]} Rxb6 {[%emt 0:00:05]} 33. Rxe2 {[%emt 0:01:01]} Bxc3 {[%emt 0:00:25]} 34. bxc3 {[%emt 0:00:03]} Rxc3 {[%emt 0:00:30]} 35. Ra7 {[%emt 0:04:00]} Nc8 {[%emt 0:00:11]} 36. Ra8 {[%emt 0:00:28]} Kg7 {[%emt 0:00:08]} 37. Rc2 {[%emt 0:00:50]} Rxc2+ {[%emt 0:00:38]} 38. Bxc2 $17 {[%emt 0:00:04][%mdl 4096] Endgame KRB-KRN} Nd6 {[%emt 0:00:04] [#] Threatens to win with ...Rb2.} 39. Ra2 {[%emt 0:00:24] Against Rb2} Rc6 {[%emt 0:03:44]} 40. Bd3 {[%emt 0:00:46]} Rc3 {[%emt 0:01:03]} 41. Rd2 {[%emt 0:00:08][%cal Od3g6]} Rc5 {[%emt 0:00:07]} 42. Bb1 {[%emt 0:00:56]} Rd5 {[%emt 0:00:21]} 43. Rg2 {[%emt 0:03:28]} Rd4 {[%emt 0:00:46]} 44. Kh3 {[%emt 0:00:25]} Nc4 {[%emt 0:01:19]} 45. Re2 {[%emt 0:00:36]} Nd6 {[%emt 0:01:22]} (45... Nb6 $17 46. Kg2 Rb4) 46. Bc2 {[%emt 0:00:59]} (46. Rg2 $1 $11 {was the only way to keep the balance.}) 46... Nb5 {[%emt 0:00:28]} 47. Rf2 {[%emt 0:00:45]} Nc3 {[%emt 0:00:22]} 48. Rg2 {[%emt 0:00:55]} Nd5 {[%emt 0:00:37] Black is more active.} 49. Rf2 {[%emt 0:00:24]} Kf6 {[%emt 0:00:35]} 50. Kh2 {[%emt 0:00:36]} Rc4 {[%emt 0:00:44]} 51. Re2 {[%emt 0:00:31] Prevents Ne3.} Rc3 {[%emt 0:00:07] [#] Hoping for ...Ne3.} 52. Be4 {[%emt 0:00:16]} Ne3 {[%emt 0:00:07] ...Nf1+ is the strong threat.} 53. Kg1 {[%emt 0:00:40][%mdl 8192] Prevents Nf1. Loses the game.} (53. Kh3 $17 {is tougher.}) 53... Nf5 $19 {[%emt 0:00:43] Black is clearly winning.} 54. Bxf5 {[%emt 0:00:16]} Kxf5 {[%emt 0:00:03]} 55. Re5+ {[%emt 0:00:41]} Kg4 {[%emt 0:00:22]} 56. Rg5+ {[%emt 0:00:04]} Kh3 {[%emt 0:01:07]} 57. Kf2 {[%emt 0:00:06]} Ra3 {[%emt 0:00:04] Weighted Error Value: White=0.39/Black=0.06 (flawless)} 0-1

[Event "1st Bella Italia International 2022"]
[Site "Lignano"]
[Date "2022.08.18"]
[Round "1.5"]
[White "Das, Sayantan"]
[Black "Bommini Mounika Akshaya"]
[Result "1-0"]
[ECO "B51"]
[WhiteElo "2449"]
[BlackElo "2107"]
[Annotator "TA"]
[PlyCount "95"]
[EventDate "2022.08.18"]
[EventCountry "ITA"]
[SourceTitle "playchess.com"]
[Source "ChessBase"]
[SourceQuality "1"]
[TimeControl "5400+30"]

{[%evp 11,95,4,15,16,21,21,20,24,18,16,15,-9,-12,0,-10,-12,0,0,0,0,0,0,0,0,0,0,0,0,69,0,0,0,56,53,37,51,58,64,42,33,119,111,104,76,173,166,168,167,165,165,167,159,154,146,143,104,295,286,275,259,279,232,378,249,400,379,489,487,480,460,466,459,446,446,895,870,1029,1019,1008,964,917,926,862,837,774,750]} 1. e4 {[%emt 0:00:14]} c5 {[%emt 0:00:09]} 2. Nf3 {[%emt 0:00:18]} d6 {[%emt 0:00:11]} 3. Bb5+ {[%emt 0:00:28]} Nd7 {[%emt 0:00:10]} 4. d4 {[%emt 0:01:48]} cxd4 {[%emt 0:00:28]} 5. Qxd4 {[%emt 0:00:13]} Ngf6 {[%emt 0:00:19]} 6. O-O {[%emt 0:00:37]} g6 {[%emt 0:00:29]} (6... a6 $5 {[%cal Ra6b5]} 7. Bxd7+ Bxd7 $11) 7. Rd1 {[%emt 0:05:00] B51: Sicilian: Moscow Variation (3 Bb5+) without 3...Bd7.} Bg7 {[%emt 0:07:43]} 8. e5 {[%emt 0:05:37]} dxe5 {[%emt 0:14:28]} 9. Nxe5 {[%emt 0:08:44] Nc3 is the strong threat. The position is equal.} O-O {[%emt 0:11:01]} 10. Nc3 {[%emt 0:12:22][%cal Re5d7]} ({But not} 10. Qd3 Qa5 11. Nxd7 Bxd7 12. Bxd7 Rfd8 $15) 10... Qb6 {[%emt 0:18:02] [#] aiming for ...Qxd4.} 11. Qxb6 $146 {[%emt 0:10:19]} ({Predecessor:} 11. Be3 Qxd4 12. Bxd4 Nxe5 13. Bxe5 Bf5 14. Bd3 Bxd3 15. Rxd3 Rfd8 16. Rad1 Rxd3 17. Rxd3 {½-½ (30) Galkin,A (2617)-Makarov,M (2511) Dagomys 2009}) 11... Nxb6 {[%emt 0:00:17]} 12. Be3 {[%emt 0:04:33]} Bf5 {[%emt 0:06:05]} 13. Bd3 {[%emt 0:05:22] Inhibits Ne4.} Rfd8 {[%emt 0:06:46]} 14. Bxf5 {[%emt 0:08:15]} gxf5 {[%emt 0:00:02]} 15. Bxb6 {[%emt 0:04:13]} axb6 {[%emt 0:00:11]} 16. Nc4 {[%emt 0:00:11]} Nd7 {[%emt 0:05:45]} 17. Rd3 {[%emt 0:11:09]} Nc5 {[%emt 0:10:19]} 18. Rxd8+ {[%emt 0:03:28]} Rxd8 {[%emt 0:00:01]} 19. Rd1 {[%emt 0:00:09]} Rxd1+ {[%emt 0:01:00]} 20. Nxd1 $11 {[%emt 0:00:02][%mdl 4096] Endgame KBN-KNN} b5 {[%emt 0:02:17]} 21. Na5 {[%emt 0:01:12]} e6 {[%emt 0:02:30]} (21... b4 $11) 22. b4 $14 {[%emt 0:06:48]} Na6 {[%emt 0:00:23]} 23. a3 {[%emt 0:00:09]} b6 {[%emt 0:00:22]} 24. Nc6 {[%emt 0:00:29]} Nc7 {[%emt 0:01:52]} 25. Kf1 {[%emt 0:01:23]} Bh6 {[%emt 0:02:41]} (25... Kf8 $14) 26. Ke2 $16 {[%emt 0:03:01]} Kf8 {[%emt 0:00:49]} 27. Kd3 {[%emt 0:02:16]} Bc1 {[%emt 0:00:59]} (27... Ke8 $16) 28. Nc3 $18 {[%emt 0:01:43]} Bb2 {[%emt 0:02:21]} 29. Na7 {[%emt 0:01:01]} Bxc3 {[%emt 0:02:24]} 30. Kxc3 {[%emt 0:00:02] KN-KN} Ke8 {[%emt 0:00:07]} 31. Kd4 {[%emt 0:00:53]} f6 {[%emt 0:02:36]} 32. Nc8 {[%emt 0:00:19]} e5+ {[%emt 0:00:42]} 33. Kd3 {[%emt 0:00:28]} Kd7 $2 {[%emt 0:02:07] A mistake that costs the game.} (33... Nd5 $16) 34. Nxb6+ {[%emt 0:00:42]} Kc6 {[%emt 0:00:03]} 35. Nc8 {[%emt 0:00:16] Threatens to win with Ne7+.} e4+ {[%emt 0:01:36]} 36. Ke3 {[%emt 0:01:33]} Kd5 {[%emt 0:00:40]} (36... Kd7 $142) 37. f4 {[%emt 0:01:11]} Ke6 $2 {[%emt 0:00:28]} (37... Ne8 38. g3 Kc4) 38. Kd4 {[%emt 0:00:41]} Nd5 {[%emt 0:00:28]} 39. g3 {[%emt 0:00:12] White is clearly winning.} Kd7 {[%emt 0:00:31] [#]} 40. Na7 {[%emt 0:00:37]} ({Not} 40. Kxd5 $2 e3 41. Nb6+ Kc7 $19) 40... Nc7 {[%emt 0:00:12]} 41. c4 {[%emt 0:00:27]} bxc4 {[%emt 0:00:09]} 42. Kxc4 {[%emt 0:00:05]} Ne6 {[%emt 0:00:08]} (42... Kd6 $142 43. a4 Kd7) 43. Nb5 {[%emt 0:00:27]} h5 {[%emt 0:01:03]} 44. Nc3 {[%emt 0:00:34]} Nc7 {[%emt 0:00:10]} 45. Nd1 {[%emt 0:00:29]} Kc6 {[%emt 0:00:16]} 46. Ne3 {[%emt 0:00:17]} Nb5 {[%emt 0:00:09]} 47. a4 {[%emt 0:00:14]} Nd6+ {[%emt 0:00:29]} 48. Kd4 {[%emt 0:03:59] Weighted Error Value: White=0.07 (flawless) /Black=0.30} 1-0